bitfinex/quotes_BTCUSD_20240623
["timestamp","ask_amount","ask_price","bid_price","bid_amount"]
[1719136991707,2.94682812,64516.0,64515.0,0.02994821]
[1719136992960,2.89290312,64516.0,64515.0,0.02994821]
[1719136993180,2.87790312,64516.0,64515.0,0.02994821]
[1719136994521,2.51496284,64516.0,64515.0,0.02994821]
[1719136994769,2.66436658,64516.0,64515.0,0.02994821]
[1719136994984,2.46613784,64516.0,64515.0,0.02994821]
[1719136995170,2.66436659,64516.0,64515.0,0.02994821]
[1719136995882,2.70960503,64516.0,64515.0,0.02994821]
[1719136996247,2.7547385,64516.0,64515.0,0.02994821]
[1719136997619,2.51137628,64516.0,64515.0,0.02994821]
[1719136997772,2.75441444,64516.0,64515.0,0.02994821]
[1719137000635,2.51137628,64516.0,64515.0,0.02994821]
[1719137000835,2.75454251,64516.0,64515.0,0.02994821]
[1719137002003,1.96408151,64516.0,64515.0,0.02994821]
[1719137002383,3.20885451,64516.0,64515.0,0.02994821]
[1719137003884,3.20882203,64516.0,64515.0,0.02994821]
[1719137004541,2.96568828,64516.0,64515.0,0.02994821]
[1719137004693,2.95794236,64516.0,64515.0,0.02994821]
[1719137005084,3.00309205,64516.0,64515.0,0.02994821]
[1719137006547,2.62587205,64516.0,64515.0,0.02994821]
[1719137007075,2.58071251,64516.0,64515.0,0.02994821]
[1719137007408,2.62586305,64516.0,64515.0,0.02994821]
[1719137009759,2.38274465,64516.0,64515.0,0.02994821]
[1719137010715,2.62589678,64516.0,64515.0,0.02994821]
[1719137012221,2.38274465,64516.0,64515.0,0.02994821]
[1719137012758,2.35173665,64516.0,64515.0,0.02994821]
[1719137012942,2.31705265,64516.0,64515.0,0.02994821]
[1719137014735,2.30514865,64516.0,64515.0,0.02994821]
[1719137017290,2.27382965,64516.0,64515.0,0.02994821]
[1719137018128,2.25379865,64516.0,64515.0,0.02994821]
[1719137019645,2.25379865,64516.0,64515.0,0.03994821]
[1719137019857,2.25379865,64516.0,64515.0,0.02994821]
[1719137020371,1.51519165,64516.0,64515.0,0.03994821]
[1719137020517,2.25049165,64516.0,64515.0,0.03994821]
[1719137020716,2.25049165,64516.0,64515.0,0.02994821]
[1719137023919,2.44969221,64516.0,64515.0,0.02994821]
[1719137024174,2.49554983,64516.0,64515.0,0.02994821]
[1719137025576,2.37718641,64516.0,64515.0,0.02994821]
[1719137027003,2.13212823,64516.0,64515.0,0.02994821]
[1719137027207,2.33123538,64516.0,64515.0,0.02994821]
[1719137027582,2.37704575,64516.0,64515.0,0.02994821]
[1719137030282,2.42296843,64516.0,64515.0,0.02994821]
[1719137030810,2.34248929,64516.0,64515.0,0.02994821]
[1719137031012,2.4229522,64516.0,64515.0,0.02994821]
[1719137031212,1.6876522,64516.0,64515.0,0.02994821]
[1719137031416,2.0253502,64516.0,64515.0,0.11514821]
[1719137032017,1.97950259,64516.0,64515.0,0.11514821]
[1719137032239,1.97950259,64516.0,64515.0,0.12514821]
[1719137032447,1.79103459,64516.0,64515.0,0.11514821]
[1719137032702,1.68774611,64516.0,64515.0,0.11514821]
[1719137033177,1.79942711,64516.0,64515.0,0.12514821]
[1719137033386,1.56952569,64516.0,64515.0,0.12514821]
[1719137033616,1.56952569,64516.0,64515.0,0.11514821]
[1719137033811,1.67621769,64516.0,64515.0,0.11514821]
[1719137034239,1.79516836,64516.0,64515.0,0.11514821]
[1719137036461,1.79536172,64516.0,64515.0,0.11514821]
[1719137038422,1.79536172,64516.0,64515.0,0.12514821]
[1719137039651,1.59554259,64516.0,64515.0,0.12514821]
[1719137039858,1.96054673,64516.0,64515.0,0.12514821]
[1719137040398,1.77305327,64516.0,64515.0,0.12514821]
[1719137040794,1.8538583,64516.0,64515.0,0.12514821]
[1719137041175,1.8538583,64516.0,64515.0,0.11514821]
[1719137041855,1.97268123,64516.0,64515.0,0.11514821]
[1719137042857,1.72685079,64516.0,64515.0,0.11514821]
[1719137043059,1.72685079,64516.0,64515.0,0.12514821]
[1719137043259,1.41685079,64516.0,64515.0,0.12514821]
[1719137043422,1.36587256,64516.0,64515.0,0.12514821]
[1719137044958,1.36587256,64516.0,64515.0,0.11514821]
[1719137045378,1.41202684,64516.0,64515.0,0.11514821]
[1719137045782,1.61192774,64516.0,64515.0,0.11514821]
[1719137046501,1.28190518,64516.0,64515.0,0.11514821]
[1719137047070,1.16286171,64516.0,64515.0,0.11514821]
[1719137047498,1.11670743,64516.0,64515.0,0.11514821]
[1719137047669,1.36289343,64516.0,64515.0,0.11514821]
[1719137048070,1.11670743,64516.0,64515.0,0.11514821]
[1719137048351,1.24383794,64516.0,64515.0,0.11514821]
[1719137048689,1.36288121,64516.0,64515.0,0.11514821]
[1719137049887,1.2436557,64516.0,64515.0,0.11514821]
[1719137051110,1.11670743,64516.0,64515.0,0.11514821]
[1719137051311,1.24359388,64516.0,64515.0,0.11514821]
[1719137053650,1.24359388,64516.0,64515.0,0.12514821]
[1719137054526,1.36172292,64516.0,64515.0,0.12514821]
[1719137054764,1.36172292,64516.0,64515.0,0.11514821]
[1719137055401,1.36172292,64516.0,64515.0,0.12514821]
[1719137056513,1.36172292,64516.0,64515.0,0.11514821]
[1719137057665,1.35879962,64516.0,64515.0,0.11514821]
[1719137058084,1.11670743,64516.0,64515.0,0.11514821]
[1719137058302,1.35879962,64516.0,64515.0,0.11514821]
[1719137058548,1.39346559,64516.0,64515.0,0.11514821]
[1719137059385,1.32048966,64516.0,64515.0,0.11514821]
[1719137060040,1.4383064,64516.0,64515.0,0.11514821]
[1719137060974,1.3934324,64516.0,64515.0,0.11514821]
[1719137061525,1.43821668,64516.0,64515.0,0.11514821]
[1719137064116,1.43844411,64516.0,64515.0,0.11514821]
[1719137065437,1.44119696,64516.0,64515.0,0.11514821]
[1719137067337,1.24376353,64516.0,64515.0,0.12514821]
[1719137067523,1.52431485,64516.0,64515.0,0.12514821]
[1719137067734,1.20129789,64516.0,64515.0,0.12514821]
[1719137067888,1.39865851,64516.0,64515.0,0.12514821]
[1719137068984,1.44351233,64516.0,64515.0,0.11514821]
[1719137069203,1.44351233,64516.0,64515.0,0.12514821]
[1719137070342,1.44357146,64516.0,64515.0,0.11514821]
[1719137071124,1.48846296,64516.0,64515.0,0.11514821]
[1719137073414,1.24614417,64516.0,64515.0,0.12514821]
[1719137073616,1.48855257,64516.0,64515.0,0.12514821]
[1719137073963,1.48855257,64516.0,64515.0,0.11514821]
[1719137074953,1.24614417,64516.0,64515.0,0.11514821]
[1719137075160,1.37061992,64516.0,64515.0,0.11514821]
[1719137075366,1.48853353,64516.0,64515.0,0.11514821]
[1719137078815,1.60727274,64516.0,64515.0,0.11514821]
[1719137080119,1.36407399,64516.0,64515.0,0.11514821]
[1719137080279,1.56212885,64516.0,64515.0,0.11514821]
[1719137080488,1.60736063,64516.0,64515.0,0.11514821]
[1719137083304,1.60675539,64516.0,64515.0,0.11514821]
[1719137084466,1.60675539,64516.0,64515.0,0.02994821]
[1719137084701,2.68787439,64516.0,64515.0,0.02994821]
[1719137086201,2.44519299,64516.0,64515.0,0.02994821]
[1719137086406,2.48995193,64516.0,64515.0,0.02994821]
[1719137086602,2.68716118,64516.0,64515.0,0.02994821]
[1719137086809,2.61413291,64516.0,64515.0,0.02994821]
[1719137087412,2.73189594,64516.0,64515.0,0.02994821]
[1719137088621,2.40651214,64516.0,64515.0,0.02994821]
[1719137089449,2.40633585,64516.0,64515.0,0.02994821]
[1719137092616,2.40629389,64516.0,64515.0,0.02994821]
[1719137095791,2.16456813,64516.0,64515.0,0.02994821]
[1719137096238,2.40643215,64516.0,64515.0,0.02994821]
[1719137096515,2.36171024,64516.0,64515.0,0.02994821]
[1719137097170,2.40638098,64516.0,64515.0,0.02994821]
[1719137097588,2.28857674,64516.0,64515.0,0.02994821]
[1719137098101,2.40628685,64516.0,64515.0,0.02994821]
[1719137099127,2.33324099,64516.0,64515.0,0.02994821]
[1719137099870,2.45095105,64516.0,64515.0,0.02994821]
[1719137100020,2.60465105,64516.0,64515.0,0.02994821]
[1719137101566,2.36293892,64516.0,64515.0,0.02994821]
[1719137101768,2.56045683,64516.0,64515.0,0.02994821]
[1719137101911,2.60538845,64516.0,64515.0,0.02994821]
[1719137104593,2.44252566,64516.0,64515.0,0.02994821]
[1719137104769,2.68539689,64516.0,64515.0,0.02994821]
[1719137105147,2.56065685,64516.0,64515.0,0.02994821]
[1719137105362,2.68526295,64516.0,64515.0,0.02994821]
[1719137105561,2.99526295,64516.0,64515.0,0.02994821]
[1719137105732,1.91414395,64516.0,64515.0,0.02994821]
[1719137106136,3.85429676,64516.0,64515.0,0.02994821]
[1719137106464,3.85428226,64516.0,64515.0,0.02994821]
[1719137106874,3.74410226,64516.0,64515.0,0.02994821]
[1719137107242,3.09535226,64516.0,64515.0,0.02994821]
[1719137107880,3.28076066,64516.0,64515.0,0.02994821]
[1719137108084,3.44408318,64516.0,64515.0,0.02994821]
[1719137108258,3.13408318,64516.0,64515.0,0.02994821]
[1719137109083,3.21371219,64516.0,64515.0,0.02994821]
[1719137109509,3.00622931,64516.0,64515.0,0.02994821]
[1719137113934,2.96098795,64516.0,64515.0,0.02994821]
[1719137114147,3.00603004,64516.0,64515.0,0.02994821]
[1719137114523,3.00574784,64516.0,64515.0,0.02994821]
[1719137115582,2.91944784,64516.0,64515.0,0.02994821]
[1719137117281,2.72191861,64516.0,64515.0,0.02994821]
[1719137117398,2.96445024,64516.0,64515.0,0.02994821]
[1719137120437,3.00933801,64516.0,64515.0,0.02994821]
[1719137120634,3.00933816,64516.0,64515.0,0.02994821]
[1719137120852,2.89140684,64516.0,64515.0,0.02994821]
[1719137121285,2.9419383,64516.0,64515.0,0.02994821]
[1719137123496,2.69948154,64516.0,64515.0,0.02994821]
[1719137123813,2.94298807,64516.0,64515.0,0.02994821]
[1719137124139,2.69948154,64516.0,64515.0,0.02994821]
[1719137124373,2.89767499,64516.0,64515.0,0.02994821]
[1719137124743,3.95854999,64516.0,64515.0,0.02994821]
[1719137124940,3.93659666,64516.0,64515.0,0.02994821]
[1719137126766,3.90173728,64516.0,64515.0,0.02994821]
[1719137127183,3.9815688,64516.0,64515.0,0.02994821]
[1719137129907,3.86365533,64516.0,64515.0,0.02994821]
[1719137130382,3.98189706,64516.0,64515.0,0.02994821]
[1719137130639,3.6490087,64516.0,64515.0,0.02994821]
[1719137132955,3.53074836,64516.0,64515.0,0.02994821]
[1719137133229,3.77418741,64516.0,64515.0,0.02994821]
[1719137133520,3.61067021,64516.0,64515.0,0.02994821]
[1719137133718,3.77417794,64516.0,64515.0,0.02994821]
[1719137134598,3.77405008,64516.0,64515.0,0.02994821]
[1719137135203,3.53074836,64516.0,64515.0,0.03994821]
[1719137135406,3.65586598,64516.0,64515.0,0.03994821]
[1719137135783,1.28895398,64516.0,64515.0,0.03994821]
[1719137135988,1.40716808,64516.0,64515.0,0.03994821]
[1719137136229,1.16383636,64516.0,64515.0,0.03994821]
[1719137136427,1.36196273,64516.0,64515.0,0.03994821]
[1719137136633,3.80207573,64516.0,64515.0,0.03994821]
[1719137136802,3.80207573,64516.0,64515.0,0.02994821]
[1719137137149,3.84730209,64516.0,64515.0,0.03994821]
[1719137137441,3.79957909,64516.0,64515.0,0.02994821]
[1719137138002,3.79957909,64516.0,64515.0,0.03994821]
[1719137138612,3.79957909,64516.0,64515.0,0.02994821]
[1719137142588,3.7994341,64516.0,64515.0,0.02994821]
[1719137142793,3.79943409,64516.0,64515.0,0.02994821]
[1719137143246,3.91759059,64516.0,64515.0,0.02994821]
[1719137144367,3.87235312,64516.0,64515.0,0.02994821]
[1719137145195,3.91758744,64516.0,64515.0,0.02994821]
[1719137145793,3.6743828,64516.0,64515.0,0.02994821]
[1719137146000,3.91760062,64516.0,64515.0,0.02994821]
[1719137149054,3.6743828,64516.0,64515.0,0.02994821]
[1719137149309,3.9176113,64516.0,64515.0,0.02994821]
[1719137149885,3.9176113,64516.0,64515.0,0.11384821]
[1719137150085,3.7192633,64516.0,64515.0,0.11384821]
[1719137151413,3.55579851,64516.0,64515.0,0.11384821]
[1719137152149,3.42497001,64516.0,64515.0,0.11384821]
[1719137152375,3.66818501,64516.0,64515.0,0.11384821]
[1719137152569,3.71339246,64516.0,64515.0,0.11384821]
[1719137152793,3.71347653,64516.0,64515.0,0.11384821]
[1719137153552,3.83166605,64516.0,64515.0,0.11384821]
[1719137154101,3.7134649,64516.0,64515.0,0.11384821]
[1719137154460,3.83165425,64516.0,64515.0,0.11384821]
[1719137155529,3.86998763,64516.0,64515.0,0.11384821]
[1719137156008,3.94988515,64516.0,64515.0,0.11384821]
[1719137158633,3.70652577,64516.0,64515.0,0.11384821]
[1719137158839,3.86999871,64516.0,64515.0,0.11384821]
[1719137159188,3.94990195,64516.0,64515.0,0.11384821]
[1719137160947,3.88432795,64516.0,64515.0,0.11384821]
[1719137161127,3.64095177,64516.0,64515.0,0.11384821]
[1719137161328,3.52256892,64516.0,64515.0,0.19204821]
[1719137161539,2.70338292,64516.0,64515.0,0.19204821]
[1719137161928,2.6920692,64516.0,64515.0,0.19204821]
[1719137162874,2.57260446,64516.0,64515.0,0.19204821]
[1719137163474,2.69224354,64516.0,64515.0,0.19204821]
[1719137164319,2.44409777,64516.0,64515.0,0.19204821]
[1719137164544,2.64529593,64516.0,64515.0,0.19204821]
[1719137164960,2.69227352,64516.0,64515.0,0.19204821]
[1719137165822,2.67521152,64516.0,64515.0,0.19204821]
[1719137167426,2.42703577,64516.0,64515.0,0.19204821]
[1719137167631,2.67413568,64516.0,64515.0,0.19204821]
[1719137169944,1.64718368,64516.0,64515.0,0.19204821]
[1719137170769,2.68933609,64516.0,64515.0,0.19204821]
[1719137170973,2.73584159,64516.0,64515.0,0.19204821]
[1719137171176,2.48899777,64516.0,64515.0,0.19204821]
[1719137171371,2.68933651,64516.0,64515.0,0.19204821]
[1719137171817,2.73592767,64516.0,64515.0,0.19204821]
[1719137172428,2.32800838,64516.0,64515.0,0.18204821]
[1719137172640,2.37459954,64516.0,64515.0,0.18204821]
[1719137173741,2.37459954,64516.0,64515.0,0.19204821]
[1719137173903,2.37459954,64516.0,64515.0,0.18204821]
[1719137174103,2.37459954,64516.0,64515.0,0.19204821]
[1719137176967,2.12751685,64516.0,64515.0,0.19204821]
[1719137177170,2.37433332,64516.0,64515.0,0.19204821]
[1719137179091,2.45544653,64516.0,64515.0,0.19204821]
[1719137180277,2.20859618,64516.0,64515.0,0.19204821]
[1719137180424,2.45520251,64516.0,64515.0,0.19204821]
[1719137180634,2.28960367,64516.0,64515.0,0.19204821]
[1719137180855,2.45520652,64516.0,64515.0,0.19204821]
[1719137181758,2.53621609,64516.0,64515.0,0.19204821]
[1719137181959,2.58264493,64516.0,64515.0,0.19204821]
[1719137183527,2.45509383,64516.0,64515.0,0.19204821]
[1719137183729,2.58226169,64516.0,64515.0,0.19204821]
[1719137186340,2.56742269,64516.0,64515.0,0.19204821]
[1719137186811,2.56768583,64516.0,64515.0,0.19204821]
[1719137187139,1.94768583,64516.0,64515.0,0.19054821]
[1719137187351,0.87361083,64516.0,64515.0,0.19054821]
[1719137188167,0.75446427,64516.0,64515.0,0.19054821]
[1719137188979,0.62711199,64516.0,64515.0,0.19054821]
[1719137189181,0.73678121,64516.0,64515.0,0.19054821]
[1719137189964,0.885703,64516.0,64515.0,0.19054821]
[1719137190493,0.92302557,64516.0,64515.0,0.19054821]
[1719137191617,1.03463126,64516.0,64515.0,0.19054821]
[1719137193009,1.03474532,64516.0,64515.0,0.19054821]
[1719137193425,0.67731219,64516.0,64515.0,0.19054821]
[1719137194459,0.56567595,64516.0,64515.0,0.19054821]
[1719137195265,0.49329065,64516.0,64515.0,0.19054821]
[1719137195466,0.56562445,64516.0,64515.0,0.19054821]
[1719137195661,0.87562445,64516.0,64515.0,0.19054821]
[1719137196078,0.91294284,64516.0,64515.0,0.19054821]
[1719137196476,0.91294967,64516.0,64515.0,0.19054821]
[1719137199459,0.80329065,64516.0,64515.0,0.19054821]
[1719137199692,0.62450331,64516.0,64515.0,0.19054821]
[1719137200138,0.58709264,64516.0,64515.0,0.19054821]
[1719137200355,0.62428124,64516.0,64515.0,0.19054821]
[1719137200869,0.93428124,64516.0,64515.0,0.19054821]
[1719137201315,0.93425927,64516.0,64515.0,0.19054821]
[1719137202671,0.97173839,64516.0,64515.0,0.19054821]
[1719137204533,0.84155074,64516.0,64515.0,0.19054821]
[1719137204759,0.79155074,64516.0,64515.0,0.19054821]
[1719137205002,0.94655074,64516.0,64515.0,0.19054821]
[1719137205740,0.8741973,64516.0,64515.0,0.19054821]
[1719137205969,0.97310492,64516.0,64515.0,0.19054821]
[1719137208830,0.8741973,64516.0,64515.0,0.19054821]
[1719137209195,0.97296931,64516.0,64515.0,0.19054821]
[1719137210024,0.97296931,64516.0,64515.0,0.12414821]
[1719137212022,1.0395073,64516.0,64515.0,0.12414821]
[1719137212198,1.0395073,64516.0,64515.0,0.11414821]
[1719137212598,1.0395073,64516.0,64515.0,0.12414821]
[1719137214069,1.0403573,64516.0,64515.0,0.12414821]
[1719137214207,0.93615014,64516.0,64515.0,0.12414821]
[1719137215269,0.93615014,64516.0,64515.0,0.2017323]
[1719137215270,0.97840543,64516.0,64515.0,0.2017323]
[1719137216447,1.08521224,64516.0,64515.0,0.2017323]
[1719137218295,0.87997229,64516.0,64515.0,0.2017323]
[1719137218516,1.04865243,64516.0,64515.0,0.2017323]
[1719137218706,1.07747845,64516.0,64515.0,0.2017323]
[1719137218907,1.04874761,64516.0,64515.0,0.2017323]
[1719137219112,1.07752363,64516.0,64515.0,0.2017323]
[1719137220955,0.97307686,64516.0,64515.0,0.2017323]
[1719137222107,1.07770335,64516.0,64515.0,0.2017323]
[1719137222552,1.38770335,64516.0,64515.0,0.1175323]
[1719137224091,1.46389533,64516.0,64515.0,0.1175323]
[1719137224867,1.49303243,64516.0,64515.0,0.1175323]
[1719137227141,1.32368588,64516.0,64515.0,0.1175323]
[1719137227270,1.41734229,64516.0,64515.0,0.1175323]
[1719137227855,1.45758892,64516.0,64515.0,0.1175323]
[1719137228203,1.52213088,64516.0,64515.0,0.1175323]
[1719137228779,1.58648837,64516.0,64515.0,0.1175323]
[1719137231825,1.58648837,64516.0,64515.0,0.1075323]
[1719137232054,2.79847537,64516.0,64515.0,0.1075323]
[1719137232270,2.94647537,64516.0,64515.0,0.1075323]
[1719137232499,2.70647537,64516.0,64515.0,0.1075323]
[1719137233205,2.50821484,64516.0,64515.0,0.1075323]
[1719137233424,2.70632981,64516.0,64515.0,0.1075323]
[1719137235145,2.43303907,64516.0,64515.0,0.1075323]
[1719137235861,2.42993407,64516.0,64515.0,0.1075323]
[1719137236063,2.40735207,64516.0,64515.0,0.1075323]
[1719137236464,2.46192274,64516.0,64515.0,0.1075323]
[1719137236847,2.51197274,64516.0,64515.0,0.1075323]
[1719137237187,2.51208775,64516.0,64515.0,0.1075323]
[1719137237345,2.35708775,64516.0,64515.0,0.1075323]
[1719137237550,2.51208775,64516.0,64515.0,0.1075323]
[1719137239585,2.37839432,64516.0,64515.0,0.1075323]
[1719137239818,2.32408103,64516.0,64515.0,0.1075323]
[1719137242694,2.32446033,64516.0,64515.0,0.1075323]
[1719137245936,2.38845298,64516.0,64515.0,0.1075323]
[1719137246296,2.19060075,64516.0,64515.0,0.1075323]
[1719137246500,2.28385761,64516.0,64515.0,0.1075323]
[1719137247128,2.38845349,64516.0,64515.0,0.1075323]
[1719137247591,1.56095308,64516.0,64515.0,0.1075323]
[1719137247740,2.57547309,64516.0,64515.0,0.1075323]
[1719137248390,2.63981012,64516.0,64515.0,0.1075323]
[1719137249296,2.74440073,64516.0,64515.0,0.1075323]
[1719137251279,2.72566373,64516.0,64515.0,0.1075323]
[1719137251924,2.64296373,64516.0,64515.0,0.1075323]
[1719137252347,2.44511795,64516.0,64515.0,0.1075323]
[1719137252547,2.57861919,64516.0,64515.0,0.1075323]
[1719137253364,2.64295232,64516.0,64515.0,0.1075323]
[1719137255202,2.42295232,64516.0,64515.0,0.1075323]
[1719137255689,2.22511795,64516.0,64515.0,0.1075323]
[1719137255831,2.42318281,64516.0,64515.0,0.1075323]
[1719137256040,1.8225561,64516.0,64515.0,0.1075323]
[1719137256269,2.02072296,64516.0,64515.0,0.1075323]
[1719137257917,1.95542296,64516.0,64515.0,0.1075323]
[1719137258848,1.9554624,64516.0,64515.0,0.1075323]
[1719137259285,2.1954414,64516.0,64515.0,0.1075323]
[1719137260314,1.9554414,64516.0,64515.0,0.1175323]
[1719137261903,1.95543612,64516.0,64515.0,0.1175323]
[1719137262260,1.95543612,64516.0,64515.0,0.03994821]
[1719137265168,1.82169381,64516.0,64515.0,0.03994821]
[1719137265332,2.01978846,64516.0,64515.0,0.03994821]
[1719137265568,1.88611615,64516.0,64515.0,0.02994821]
[1719137265691,1.95536614,64516.0,64515.0,0.02994821]
[1719137266057,1.95536614,64516.0,64515.0,0.03994821]
[1719137266246,1.95536614,64516.0,64515.0,0.02994821]
[1719137266943,1.99098076,64516.0,64515.0,0.02994821]
[1719137267310,2.01996655,64516.0,64515.0,0.02994821]
[1719137268369,2.04882339,64516.0,64515.0,0.02994821]
[1719137270180,1.40657539,64516.0,64515.0,0.02994821]
[1719137270386,2.04856539,64516.0,64515.0,0.02994821]
[1719137270593,2.04856539,64516.0,64515.0,0.03994821]
[1719137271219,2.04856539,64516.0,64515.0,0.02994821]
[1719137271438,1.98417118,64516.0,64515.0,0.03994821]
[1719137271756,2.04863366,64516.0,64515.0,0.03994821]
[1719137272149,2.04863366,64516.0,64515.0,0.02994821]
[1719137273932,2.04863366,64516.0,64515.0,0.03994821]
[1719137274162,2.04863366,64516.0,64504.0,0.01]
[1719137274163,1.42051589,64516.0,64504.0,0.01]
[1719137274370,1.42051589,64516.0,64463.0,0.01864119]
[1719137274371,2.61410455,64515.0,64463.0,0.01864119]
[1719137274546,2.61410455,64515.0,64466.0,0.07736595]
[1719137274547,0.310236,64467.0,64466.0,0.07736595]
[1719137274766,0.310236,64467.0,64460.0,0.00935]
[1719137274767,0.465397,64461.0,64460.0,0.00935]
[1719137274980,1.25790534,64461.0,64460.0,0.12935]
[1719137275195,1.25790534,64461.0,64457.0,0.22947688]
[1719137275196,0.465418,64458.0,64457.0,0.22947688]
[1719137275398,1.71131703,64458.0,64457.0,0.22947688]
[1719137275600,2.21282566,64458.0,64457.0,0.22947688]
[1719137275808,2.76397186,64458.0,64457.0,0.22947688]
[1719137276467,2.40932226,64458.0,64457.0,0.22947688]
[1719137277166,2.40932226,64458.0,64457.0,0.24347688]
[1719137277398,2.56546182,64458.0,64457.0,0.24324184]
[1719137277613,2.56393673,64458.0,64457.0,0.24424184]
[1719137277815,2.56493673,64458.0,64457.0,0.24424184]
[1719137278345,2.40879717,64458.0,64457.0,0.24424184]
[1719137278768,2.40879717,64458.0,64457.0,0.24517684]
[1719137279953,2.40879717,64458.0,64457.0,0.24494175]
[1719137280253,2.40879717,64458.0,64457.0,0.23719848]
[1719137280457,2.40472679,64458.0,64457.0,0.23719848]
[1719137280680,2.40488194,64458.0,64457.0,0.23719848]
[1719137282492,2.12942386,64458.0,64457.0,0.23719848]
[1719137282710,1.65375739,64458.0,64457.0,0.23719848]
[1719137282826,1.86816347,64458.0,64457.0,0.23719848]
[1719137283034,2.02057194,64458.0,64457.0,0.23719848]
[1719137283254,1.28429036,64458.0,64457.0,0.23719848]
[1719137283648,1.28429036,64458.0,64457.0,0.23696339]
[1719137283649,1.88189648,64458.0,64457.0,0.23696339]
[1719137284375,1.78995809,64458.0,64457.0,0.23696339]
[1719137284585,1.086011,64456.0,64455.0,0.03503157]
[1719137284783,0.155173,64445.0,64442.0,0.02]
[1719137284988,0.2698281,64444.0,64443.0,0.1033439]
[1719137285390,0.155173,64444.0,64443.0,0.1033439]
[1719137285591,0.26974964,64444.0,64443.0,0.1033439]
[1719137286023,0.38432615,64444.0,64443.0,0.1033439]
[1719137286440,0.26974964,64444.0,64443.0,0.1033439]
[1719137286643,0.26974964,64444.0,64443.0,0.15256112]
[1719137286847,0.26990479,64444.0,64443.0,0.15256112]
[1719137287223,0.27090479,64444.0,64443.0,0.16556112]
[1719137287817,0.27090479,64444.0,64443.0,0.32426112]
[1719137288026,0.27090479,64444.0,64443.0,0.3446915]
[1719137290003,0.27090479,64444.0,64443.0,0.16570004]
[1719137290199,0.27090479,64444.0,64443.0,0.14526966]
[1719137290802,0.27090479,64444.0,64443.0,0.12991318]
[1719137291342,0.27190479,64444.0,64443.0,0.12991318]
[1719137294476,0.38519857,64444.0,64443.0,0.12991318]
[1719137294904,0.155178,64443.0,64435.0,1e-08]
[1719137295101,0.07764518,64441.0,64436.0,0.06887935]
[1719137295327,0.07764518,64441.0,64436.0,0.08934343]
[1719137296491,0.07864518,64441.0,64436.0,0.09034343]
[1719137297900,0.07864518,64441.0,64437.0,0.1638]
[1719137298106,0.07864518,64441.0,64437.0,0.23310884]
[1719137298107,0.155187,64438.0,64437.0,0.23310884]
[1719137298480,0.26726634,64438.0,64437.0,0.23310884]
[1719137298719,0.26742154,64438.0,64437.0,0.23310884]
[1719137299345,0.26842154,64438.0,64437.0,0.23310884]
[1719137300284,0.26942154,64438.0,64437.0,0.23410884]
[1719137301559,0.26988992,64438.0,64437.0,0.23410884]
[1719137302136,0.69279579,64438.0,64437.0,0.1648]
[1719137302338,0.83672639,64438.0,64437.0,0.0922]
[1719137303350,0.83710479,64438.0,64437.0,0.0922]
[1719137303585,1.14747979,64438.0,64437.0,0.001]
[1719137304025,1.20174732,64438.0,64437.0,0.001]
[1719137304227,0.155192,64436.0,64435.0,1e-08]
[1719137304433,0.29940542,64436.0,64435.0,1e-08]
[1719137304636,0.29957172,64436.0,64435.0,1e-08]
[1719137304840,0.155195,64435.0,64433.0,0.23874332]
[1719137305033,0.14437972,64434.0,64433.0,0.23874332]
[1719137305242,0.25738298,64434.0,64433.0,0.23874332]
[1719137306452,0.25738298,64434.0,64433.0,0.27009751]
[1719137306857,0.25838298,64434.0,64433.0,0.27109751]
[1719137307253,0.34373267,64434.0,64433.0,0.27109751]
[1719137307684,0.34480708,64434.0,64433.0,0.27109751]
[1719137308333,0.34496228,64434.0,64433.0,0.27109751]
[1719137310538,0.34496228,64434.0,64433.0,0.27203251]
[1719137310744,0.08750489,64434.0,64433.0,0.27203251]
[1719137310982,0.23173136,64434.0,64433.0,0.27203251]
[1719137311131,0.344586,64434.0,64433.0,0.27203251]
[1719137311336,0.08750489,64434.0,64433.0,0.27203251]
[1719137311544,0.20035954,64434.0,64433.0,0.27203251]
[1719137312437,0.34460288,64434.0,64433.0,0.27203251]
[1719137315773,0.20015219,64434.0,64433.0,0.27203251]
[1719137316231,0.34421994,64434.0,64433.0,0.27203251]
[1719137316351,0.39033496,64434.0,64433.0,0.27203251]
[1719137316979,0.39033496,64434.0,64433.0,0.24067832]
[1719137317421,0.46699887,64434.0,64433.0,0.27203251]
[1719137317562,0.67178024,64434.0,64433.0,0.27203251]
[1719137318501,0.34400464,64434.0,64433.0,0.27203251]
[1719137318723,0.57970614,64434.0,64433.0,0.27203251]
[1719137319242,0.88746037,64434.0,64433.0,0.24067832]
[1719137320351,1.0435694,64434.0,64433.0,0.24067832]
[1719137320921,1.04549726,64434.0,64433.0,0.24067832]
[1719137323653,1.1572745,64434.0,64433.0,0.24067832]
[1719137326798,1.01349707,64434.0,64433.0,0.24067832]
[1719137327026,1.15710675,64434.0,64433.0,0.24067832]
[1719137329745,0.76405072,64434.0,64433.0,0.24067832]
[1719137329946,0.76405072,64434.0,64433.0,0.42459363]
[1719137329947,1.1578343,64434.0,64433.0,0.42459363]
[1719137330089,1.27016373,64434.0,64433.0,0.89019163]
[1719137330291,1.11344709,64434.0,64433.0,0.89019163]
[1719137330511,1.11344709,64434.0,64433.0,1.45389063]
[1719137330512,1.25969104,64434.0,64433.0,1.45389063]
[1719137331754,1.26504989,64434.0,64433.0,1.45389063]
[1719137332999,0.45587216,64434.0,64433.0,1.45389063]
[1719137333176,1.21139152,64434.0,64433.0,1.45389063]
[1719137336064,0.45587216,64434.0,64433.0,1.45389063]
[1719137336444,0.68254896,64434.0,64433.0,1.45389063]
[1719137336657,1.2126291,64434.0,64433.0,1.45389063]
[1719137339300,1.07826518,64434.0,64433.0,1.45389063]
[1719137339802,1.23507549,64434.0,64433.0,1.45389063]
[1719137340006,1.20753655,64434.0,64433.0,1.45389063]
[1719137340399,0.99599434,64434.0,64433.0,1.45389063]
[1719137340604,0.83916928,64434.0,64433.0,1.45389063]
[1719137341207,1.02798684,64434.0,64433.0,1.45389063]
[1719137341576,1.10970971,64434.0,64433.0,1.45389063]
[1719137341784,0.84749166,64434.0,64433.0,1.45389063]
[1719137343554,0.69063734,64434.0,64433.0,1.45389063]
[1719137344527,0.69063734,64434.0,64433.0,1.14349163]
[1719137344725,0.38182598,64434.0,64433.0,1.14349163]
[1719137344930,0.56502558,64434.0,64433.0,1.14349163]
[1719137345336,0.56502558,64434.0,64433.0,1.14364648]
[1719137345755,0.56587558,64434.0,64433.0,1.14364648]
[1719137347999,0.56529557,64434.0,64433.0,1.14364648]
[1719137348673,0.49040166,64434.0,64433.0,1.14364648]
[1719137349810,0.56519864,64434.0,64433.0,1.14364648]
[1719137351154,0.38212455,64434.0,64433.0,1.14364648]
[1719137351333,0.45687082,64434.0,64433.0,1.14364648]
[1719137351519,0.56484316,64434.0,64433.0,1.14364648]
[1719137352439,0.56484316,64434.0,64433.0,0.71904748]
[1719137352972,0.56484316,64434.0,64433.0,0.57994748]
[1719137354178,0.38135076,64434.0,64433.0,0.57994748]
[1719137354411,0.45620177,64434.0,64433.0,0.57994748]
[1719137354601,0.56433607,64434.0,64433.0,0.57994748]
[1719137355758,0.56421323,64434.0,64433.0,0.57994748]